bitfinex-derivatives/quotes_ETHF0:USTF0_20250125
["timestamp","ask_amount","ask_price","bid_price","bid_amount"]
[1737778270148,7.57575148,3314.0,3313.9,0.9774]
[1737778271057,7.09288148,3314.0,3313.9,0.9774]
[1737778271257,3.2078,3314.0,3313.9,0.9774]
[1737778271558,7.11037212,3314.0,3313.9,0.9774]
[1737778275059,3.2078,3314.0,3313.9,1.46028]
[1737778279961,3.2078,3314.0,3313.9,0.9774]
[1737778280161,3.69067,3314.0,3313.9,0.9774]
[1737778281256,3.2078,3314.0,3313.9,0.9774]
[1737778282468,3.2078,3314.0,3313.9,1.46028]
[1737778285655,3.2078,3314.0,3313.9,0.9774]
[1737778285956,3.69067,3314.0,3313.9,0.9774]
[1737778287663,3.2078,3314.0,3313.9,0.9774]
[1737778288965,3.2078,3314.0,3313.9,1.46028]
[1737778289170,3.2078,3314.0,3313.9,0.9774]
[1737778290270,3.2078,3314.0,3313.9,1.46028]
[1737778290669,1.09344463,3314.1,3314.0,0.48287]
[1737778301867,0.00452351,3314.2,3313.9,0.9774]
[1737778302073,0.00452351,3314.2,3314.1,0.48285]
[1737778314879,0.00452351,3314.2,3314.1,1.57629463]
[1737778321393,3.2078,3314.8,3314.7,0.48276]
[1737778323396,3.2078,3314.8,3314.7,0.99496]
[1737778333996,1.09344463,3314.9,3314.7,0.5122]
[1737778334196,1.09344463,3314.9,3314.8,0.98755]
[1737778337696,4.30576814,3315.1,3314.8,0.5048]
[1737778337998,4.30576814,3315.1,3315.0,0.48272]
[1737778338196,1.09796814,3315.1,3315.0,0.48272]
[1737778343002,0.00452351,3315.1,3315.0,0.48272]
[1737778345997,1.09344463,3315.3,3315.0,0.48272]
[1737778345998,1.09344463,3315.7,3315.0,1.09344463]
[1737778346205,1.09344463,3315.7,3315.6,0.48263]
[1737778346700,1.09344463,3315.7,3315.5,0.48264]
[1737778347305,0.48265,3315.5,3315.1,0.5133]
[1737778347504,1.09344463,3315.2,3315.1,0.5133]
[1737778348006,1.09344463,3315.2,3315.1,0.99601]
[1737778362313,5.42217991,3315.2,3315.1,0.5133]
[1737778363616,5.42217991,3315.2,3314.9,0.48273]
[1737778363812,1.09344463,3315.0,3314.9,0.48273]
[1737778377622,1.09344463,3315.0,3314.8,1.0411]
[1737778378021,1.09344463,3315.0,3314.9,0.48274]
[1737778381238,1.09344463,3315.0,3314.8,1.0411]
[1737778382424,1.09344463,3315.0,3314.9,0.48274]
[1737778383436,1.09344463,3315.0,3314.8,1.0411]
[1737778383631,0.48274,3314.9,3314.8,1.0411]
[1737778385736,5.56756663,3315.0,3314.8,1.0411]
[1737778385927,5.08483663,3315.0,3314.8,1.52385]
[1737778386430,5.56755663,3315.0,3314.8,1.0411]
[1737778387638,5.08483663,3315.0,3314.8,1.0411]
[1737778389035,5.08483663,3315.0,3314.8,1.52384]
[1737778391237,5.08483663,3315.0,3314.9,0.48274]
[1737778391739,3.2078,3315.1,3314.8,1.0411]
[1737778392332,3.2078,3315.1,3315.0,0.48272]
[1737778398758,1.09344463,3315.4,3315.2,0.48268]
[1737778399053,1.09344463,3315.4,3315.3,1.5243]
[1737778405559,1.57610463,3315.4,3315.3,1.5243]
[1737778405756,1.57610463,3315.4,3315.3,1.0184]
[1737778406064,5.06258409,3315.4,3314.7,0.97256]
[1737778406358,0.48274,3314.9,3314.8,0.4895]
[1737778406654,1.57618463,3314.9,3314.8,0.4895]
[1737778406860,5.56803909,3314.9,3314.8,0.4895]
[1737778410565,5.56803909,3314.9,3314.5,0.512]
[1737778410566,5.08529909,3314.9,3314.5,0.512]
[1737778410856,5.08529909,3314.9,3314.4,0.00452351]
[1737778410857,0.48279,3314.5,3314.4,0.00452351]
[1737778411263,4.37031225,3314.5,3314.4,0.00452351]
[1737778413563,4.41884528,3314.5,3314.4,0.00452351]
[1737778413963,4.41884716,3314.5,3314.4,0.00452351]
[1737778416467,4.41884678,3314.5,3314.4,0.00452351]
[1737778418867,7.62664678,3314.5,3314.4,0.00452351]
[1737778420771,7.62664861,3314.5,3314.4,0.00452351]
[1737778421572,7.57811225,3314.5,3314.4,0.00452351]
[1737778421764,7.6266485,3314.5,3314.4,0.00452351]
[1737778423973,7.57811225,3314.5,3314.4,0.00452351]
[1737778424169,7.62664795,3314.5,3314.4,0.00452351]
[1737778424669,7.57811225,3314.5,3314.4,0.00452351]
[1737778424866,7.62664862,3314.5,3314.4,0.00452351]
[1737778426678,8.53611225,3314.5,3314.4,0.00452351]
[1737778427677,7.57811225,3314.5,3314.4,0.00452351]
[1737778427877,8.53611225,3314.5,3314.4,0.00452351]
[1737778428383,7.09532225,3314.5,3314.4,0.00452351]
[1737778430373,5.51192225,3314.5,3314.4,0.00452351]
[1737778435784,2.30412225,3314.5,3314.4,0.00452351]
[1737778438787,1.09344463,3314.8,3314.5,0.48279]
[1737778438981,1.09344463,3314.8,3314.6,0.48278]
[1737778439384,1.09344463,3314.8,3314.7,0.4797]
[1737778440288,1.09344463,3314.8,3314.7,0.96246]
[1737778444692,3.2078,3314.9,3314.8,0.48275]
[1737778444875,3.2078,3314.9,3314.8,1.47405]
[1737778445282,3.2078,3314.9,3314.8,0.9913]
[1737778445484,3.2078,3314.9,3314.8,1.47405]
[1737778445684,3.2078,3314.9,3314.8,0.9913]
[1737778446688,3.2078,3314.9,3314.8,1.47405]
[1737778446988,1.57617463,3315.0,3314.8,1.47405]
[1737778447195,1.09344463,3315.0,3314.8,1.47405]
[1737778447490,1.09344463,3315.0,3314.8,0.9913]
[1737778447695,1.09344463,3315.0,3314.9,0.48274]
[1737778453494,1.57617463,3315.0,3314.8,1.47405]
[1737778453694,0.48274,3314.9,3314.8,0.9913]
[1737778455094,1.09344463,3315.0,3314.8,1.47405]
[1737778455293,1.57616463,3315.0,3314.8,1.47405]
[1737778455486,1.09344463,3315.0,3314.8,0.9913]
[1737778455694,0.48274,3314.9,3314.8,0.9913]
[1737778456786,0.48274,3314.9,3314.8,1.47405]
[1737778457991,1.57617463,3315.0,3314.8,1.47405]
[1737778461099,1.09344463,3315.0,3314.8,1.47405]
[1737778464497,1.09344463,3315.0,3314.9,0.48274]
[1737778464697,1.09344463,3315.0,3314.8,1.47404]
[1737778465201,1.09344463,3315.0,3314.9,0.48274]
[1737778465791,1.09344463,3315.0,3314.8,1.47404]
[1737778469805,1.09344463,3315.0,3314.4,3.21232351]
[1737778470009,1.57619463,3314.8,3314.5,1.48668]
[1737778470910,3.96611878,3314.7,3314.5,1.48668]
[1737778471809,4.44888878,3314.7,3314.5,1.48668]
[1737778476311,3.96611878,3314.7,3314.6,0.48278]
[1737778481115,4.44888878,3314.7,3314.5,1.48669]
[1737778482821,4.44888878,3314.7,3314.5,1.0039]
[1737778483014,4.44888878,3314.7,3314.6,0.48278]
[1737778484418,3.96611878,3314.7,3314.6,0.48278]
[1737778486417,4.44888878,3314.7,3314.5,1.48669]
[1737778487725,0.5127,3314.6,3314.5,1.48669]
[1737778488126,0.5127,3314.6,3314.4,0.00452351]
[1737778488127,0.48279,3314.5,3314.4,0.00452351]
[1737778488326,0.96099,3314.5,3314.4,0.00452351]
[1737778488828,4.94857341,3314.5,3314.4,0.00452351]
[1737778490429,5.90557341,3314.5,3314.4,0.00452351]
[1737778490922,9.11337341,3314.5,3314.4,0.00452351]
[1737778500235,8.63517341,3314.5,3314.4,0.00452351]
[1737778507841,7.67817341,3314.5,3314.4,0.00452351]
[1737778508139,8.63517341,3314.5,3314.4,0.00452351]
[1737778508444,7.67817341,3314.5,3314.4,0.00452351]
[1737778508741,8.63517341,3314.5,3314.4,0.00452351]
[1737778510139,5.42737341,3314.5,3314.4,0.00452351]
[1737778510343,8.63517341,3314.5,3314.4,0.00452351]
[1737778516144,9.15047341,3314.5,3314.4,0.00452351]
[1737778518847,8.63517341,3314.5,3314.4,0.00452351]
[1737778521149,9.16227341,3314.5,3314.4,0.00452351]
[1737778523148,8.63517341,3314.5,3314.4,0.00452351]
[1737778523951,9.12187341,3314.5,3314.4,0.00452351]
[1737778524539,9.17040693,3314.5,3314.4,1e-08]
[1737778524746,0.48285,3314.1,3314.0,0.5176]
[1737778525053,1.57629463,3314.1,3314.0,0.5176]
[1737778525644,5.46246411,3314.1,3314.0,0.5176]
[1737778528749,4.97961411,3314.1,3314.0,0.5176]
[1737778531743,3.88616948,3314.1,3314.0,0.5176]
[1737778537157,5.46246411,3314.1,3314.0,0.5176]
[1737778541457,4.97961411,3314.1,3314.0,0.5176]
[1737778542757,5.46246411,3314.1,3314.0,0.5176]
[1737778544560,4.97961411,3314.1,3314.0,0.5176]
[1737778548770,5.46246411,3314.1,3314.0,0.5176]
[1737778549860,4.97961411,3314.1,3313.8,0.5275]
[1737778550055,1.09344463,3313.9,3313.8,0.5275]
[1737778551360,1.09344463,3314.1,3313.9,0.48287]
[1737778551566,0.00452351,3314.2,3313.8,0.5275]
[1737778551766,0.00452351,3314.2,3314.0,0.48286]
[1737778552771,0.00452351,3314.2,3313.8,0.5275]
[1737778553278,0.00452351,3314.2,3313.9,0.48287]
[1737778556872,1.09344463,3314.1,3313.8,1.01039]
[1737778557976,1.57629463,3314.1,3313.8,1.01039]
[1737778560681,1.57629463,3314.1,3313.8,0.5275]
[1737778560978,1.57629463,3314.1,3313.9,0.48288]
[1737778562181,1.09344463,3314.1,3313.8,0.5275]
[1737778562388,1.57629463,3314.1,3313.9,0.48288]
[1737778563683,1.09344463,3314.1,3313.8,0.5275]
[1737778563882,1.09344463,3314.1,3314.0,0.48287]
[1737778564082,1.57629463,3314.1,3313.9,0.48287]
[1737778569588,0.48285,3314.1,3313.9,0.48287]
[1737778569790,0.48737351,3314.2,3314.0,0.48287]
[1737778571295,1.57630463,3314.1,3313.9,0.48287]
[1737778571694,1.57630463,3314.1,3313.8,0.5275]
[1737778571695,0.48288,3313.9,3313.8,0.5275]
[1737778572394,1.57632463,3313.9,3313.8,0.5275]
[1737778573095,1.09344463,3313.9,3313.7,1.01462351]
[1737778573299,0.4829,3313.8,3313.7,1.01462351]
[1737778574598,4.44737712,3313.8,3313.7,1.01462351]
[1737778575100,4.44737712,3313.8,3313.7,0.49122351]
[1737778581405,4.44737712,3313.8,3313.7,0.00452351]
[1737778581608,4.44737712,3313.8,3313.7,1e-08]
[1737778582102,4.49587809,3313.8,3313.7,1e-08]
[1737778584006,7.49287809,3313.8,3313.7,1e-08]
[1737778584300,7.49287593,3313.8,3313.7,1e-08]
[1737778584812,9.49587593,3313.8,3313.7,1e-08]
[1737778586606,9.44737712,3313.8,3313.7,1e-08]
[1737778586805,9.49588544,3313.8,3313.7,1e-08]
[1737778587107,9.01298544,3313.8,3312.7,1.0258]
[1737778587308,1.09344463,3312.8,3312.7,1.0258]
[1737778588211,4.99600375,3312.8,3312.7,1.0258]
[1737778597310,5.47904375,3312.8,3312.7,1.0258]
[1737778598817,4.99600375,3312.8,3312.7,1.0258]
[1737778602503,5.47904375,3312.8,3312.7,1.0258]
[1737778607323,4.99600375,3312.8,3312.7,1.0258]
[1737778608019,5.47904375,3312.8,3312.7,1.0258]
[1737778609537,4.99600375,3312.8,3312.7,1.0258]
[1737778611938,3.90255912,3312.8,3312.7,1.50886]
[1737778612139,1.09344463,3313.2,3313.1,0.483]
[1737778612439,1.09344463,3313.2,3313.0,0.483]
[1737778614943,1.09344463,3313.2,3312.7,2.11924463]
[1737778615148,1.09344463,3313.0,3312.9,0.48302]
[1737778618846,1.09344463,3313.2,3313.0,0.48301]
[1737778619044,1.09344463,3313.2,3313.0,0.483]
[1737778619247,1.09344463,3313.2,3312.8,0.48304]
[1737778619449,1.09344463,3312.9,3312.8,0.48304]
[1737778619942,1.57644463,3313.1,3312.8,0.48304]
[1737778622849,1.09344463,3312.9,3312.7,1.0258]
[1737778623049,0.48304,3312.8,3312.7,1.0258]
[1737778623439,4.49085766,3312.8,3312.7,1.0258]
[1737778628651,4.49085766,3312.8,3312.7,0.5185]
[1737778629757,4.98545766,3312.8,3312.7,0.5185]
[1737778631356,4.50241766,3312.8,3312.4,0.4818]
[1737778631650,1.09344463,3312.5,3312.4,0.9625]
[1737778633849,1.57652463,3312.5,3312.4,0.9625]
[1737778636348,1.09344463,3312.5,3312.4,1.4456]
[1737778636554,3.2078,3313.0,3312.4,0.9625]
[1737778636749,1.09344463,3313.1,3312.7,1.09344463]
[1737778636955,1.09344463,3312.9,3312.8,0.5192]
[1737778637447,1.57647463,3312.9,3312.8,0.5192]
[1737778638155,1.09344463,3312.9,3312.8,0.5192]
[1737778638853,1.09344463,3312.9,3312.8,1.00224]
[1737778639548,1.09344463,3312.9,3312.8,0.5192]
[1737778643455,0.48304,3312.8,3312.4,0.4807]
[1737778643656,1.09344463,3312.5,3312.4,0.9802]
[1737778645857,1.57652463,3312.5,3312.4,0.9802]
[1737778646158,5.57179369,3312.5,3312.4,0.9802]
[1737778647761,5.57179369,3312.5,3312.4,0.4807]
[1737778649157,5.08871369,3312.5,3312.1,3.2078]
[1737778649362,1.09344463,3312.3,3311.7,5.22787357]
[1737778649564,1.09344463,3311.8,3311.7,5.22787357]
[1737778650459,4.99764657,3311.8,3311.7,5.22787357]
[1737778652463,4.99764657,3311.8,3311.7,0.5177]
[1737778654357,5.48083657,3311.8,3311.7,0.5177]
[1737778655665,4.99764657,3311.8,3311.7,0.5177]
[1737778655961,5.48083657,3311.8,3311.7,0.5177]
[1737778656762,4.99764657,3311.8,3311.7,0.5177]
[1737778657555,5.48083657,3311.8,3311.7,0.5177]
[1737778657752,4.99764657,3311.8,3311.7,0.5177]
[1737778661058,1.09344463,3312.2,3311.7,4.81894463]
[1737778661255,1.09344463,3312.2,3312.1,0.48314]
[1737778665071,1.09344463,3312.4,3311.9,1.09344463]
[1737778665273,1.09344463,3312.4,3312.2,0.48313]
[1737778671572,1.09344463,3312.4,3312.0,0.9984]
[1737778671771,1.09344463,3312.1,3312.0,0.9984]
[1737778671973,1.57658463,3312.1,3312.0,0.9984]
[1737778672277,5.58864219,3312.1,3312.0,0.9984]
[1737778672980,5.58864219,3312.1,3312.0,0.5197]
[1737778674477,6.54364219,3312.1,3311.8,0.5061]
[1737778674673,1.09344463,3311.9,3311.8,0.5061]
[1737778676076,0.00452351,3312.3,3311.8,1.59954463]
[1737778676278,0.00452351,3312.3,3312.2,0.48313]
[1737778686186,0.00452351,3312.3,3312.1,0.48314]
[1737778686389,0.00452351,3312.3,3312.2,1.0521]
[1737778687486,0.48763351,3312.3,3312.2,1.0521]
[1737778687679,1.58107814,3312.3,3312.2,1.0521]
[1737778687883,1.58107814,3312.3,3311.8,0.5061]
[1737778687884,5.06540087,3312.3,3311.8,0.5061]
[1737778688190,1.09344463,3311.9,3311.8,0.5061]
[1737778689986,1.57661463,3311.9,3311.8,0.5061]
[1737778692992,5.01011776,3311.9,3311.7,0.9994]
[1737778693185,1.00349,3311.8,3311.7,0.9994]
[1737778693799,4.93337438,3311.8,3311.7,0.9994]
[1737778695492,3.92988438,3311.8,3311.7,0.9994]
[1737778695693,3.92988438,3311.8,3311.7,1.4826]
[1737778700890,4.41307438,3311.8,3311.7,0.4836]
[1737778701097,0.48324,3311.5,3311.3,0.4822]
[1737778701300,1.09344463,3311.4,3311.3,0.4822]
[1737778702089,4.95770025,3311.4,3311.3,0.4822]
[1737778702308,4.95770025,3311.4,3311.2,0.4995]
[1737778702901,4.95770025,3311.4,3311.2,0.98277]
[1737778703394,5.44095025,3311.4,3311.1,0.5236]
[1737778703703,1.09344463,3311.2,3311.1,0.5236]
[1737778705303,1.09344463,3311.2,3311.1,1.00689]
[1737778705699,1.09344463,3311.2,3311.1,0.5236]
[1737778706101,5.02058397,3311.2,3311.1,0.5236]
[1737778709303,5.02058397,3311.2,3311.1,1.00689]
[1737778709505,5.02058397,3311.2,3311.1,0.5236]
[1737778710508,1.09344463,3311.4,3311.3,0.48326]
[1737778712196,1.09344463,3311.4,3311.1,0.5236]
[1737778712506,1.09344463,3311.2,3311.1,1.00689]
[1737778713904,1.09344463,3311.2,3311.1,0.5236]
[1737778714207,5.55912092,3311.2,3311.1,0.5236]
[1737778719698,5.55912092,3311.2,3310.9,0.9934]
[1737778719898,0.48337,3310.6,3310.2,0.48342]
[1737778720106,4.1628,3310.6,3310.4,0.48338]
[1737778720301,3.86457973,3310.5,3310.4,0.48339]
[1737778720810,4.1628,3310.6,3310.4,0.48339]
[1737778721114,5.05288238,3310.5,3310.3,1.9706]
[1737778721305,5.05288238,3310.5,3310.3,1.4872]
[1737778721804,6.27464622,3310.5,3310.3,1.4872]
[1737778722100,6.27464622,3310.5,3310.3,1.9706]
[1737778722299,6.27464622,3310.5,3310.3,1.4872]
[1737778722503,2.31520847,3310.5,3310.4,0.48339]
[1737778730419,5.52300847,3310.5,3310.3,1.9706]
[1737778731921,6.01420847,3310.5,3310.3,1.9706]
[1737778732418,6.01420847,3310.5,3310.3,1.4872]
[1737778732717,6.49758847,3310.5,3310.3,1.4872]
[1737778733019,6.01420847,3310.5,3310.3,1.4872]
[1737778733218,6.01420847,3310.5,3310.3,1.9706]
[1737778733413,6.01420847,3310.5,3310.3,1.4872]
[1737778733612,4.3207701,3310.4,3310.3,1.4872]
[1737778734318,4.3207701,3310.4,3310.3,0.5125]
[1737778738419,3.8373801,3310.4,3310.3,0.5125]
[1737778738613,4.3207701,3310.4,3310.3,0.5125]
[1737778741818,5.41693052,3310.4,3310.3,0.5125]
[1737778744931,4.93354052,3310.4,3310.3,0.5125]
[1737778746221,4.93354052,3310.4,3310.3,0.99591]
[1737778746222,1.09616042,3310.4,3310.3,0.99591]
[1737778747926,1.09616042,3310.4,3310.3,0.5125]
[1737778748624,1.09616042,3310.4,3310.3,0.99591]
[1737778751933,1.09616042,3310.4,3310.3,0.5125]
[1737778752230,1.09616042,3310.4,3310.3,0.99591]
[1737778753236,1.09616042,3310.4,3310.3,0.5125]
[1737778756135,1.09616042,3310.4,3310.3,0.99591]
[1737778760638,1.09616042,3310.4,3309.6,3.2078]
[1737778760835,0.48341,3310.3,3310.0,0.48345]
[1737778761033,0.48341,3310.3,3310.1,0.5038]
[1737778761434,0.48341,3310.3,3310.2,0.4929]
[1737778761738,3.2078,3310.4,3310.2,0.4929]
[1737778761932,1.09616042,3310.3,3310.2,0.97632]
[1737778763731,3.2078,3310.4,3310.3,0.4834]
[1737778763936,2.31507375,3310.7,3310.2,0.4929]
[1737778764140,3.21233042,3310.8,3310.2,0.4929]
[1737778764334,3.21233042,3310.8,3310.6,0.48335]
[1737778764535,3.21233042,3310.8,3310.7,0.9808]
[1737778765437,3.21233042,3310.8,3310.5,0.48337]
[1737778765640,2.31507375,3310.6,3310.4,0.48338]
[1737778765941,2.31507375,3310.6,3310.5,0.96858]
[1737778766642,2.31507375,3310.6,3310.5,0.4852]
[1737778767241,2.31507375,3310.6,3310.5,0.96858]
[1737778768645,2.31507375,3310.6,3310.5,0.4852]
[1737778768851,6.15456746,3310.6,3309.8,4.74662616]
[1737778769146,3.2078,3309.9,3309.8,5.25922616]
[1737778769935,7.14680609,3309.9,3309.8,5.25922616]
[1737778770640,3.93900609,3309.9,3309.8,5.25922616]
[1737778772249,3.93900609,3309.9,3309.8,0.5126]
[1737778772445,3.26907375,3310.1,3309.8,0.5126]
[1737778772649,3.26907375,3310.1,3309.8,0.99607]
[1737778772845,3.26907375,3310.1,3309.8,0.5126]
[1737778773046,3.26907375,3310.1,3309.8,0.99607]
[1737778773348,3.26907375,3310.1,3309.8,0.5126]
[1737778773545,3.26907375,3310.1,3309.8,0.99607]
[1737778773748,3.26907375,3310.1,3309.8,0.5126]
[1737778773948,3.26907375,3310.1,3309.8,0.99606]
[1737778774949,3.26907375,3310.1,3309.8,0.5126]
[1737778775147,3.26907375,3310.1,3309.8,0.99607]
[1737778775850,3.26907375,3310.1,3309.9,0.48346]
[1737778776048,3.26907375,3310.1,3310.0,0.48345]
[1737778776249,3.2078,3310.3,3310.0,0.48344]
[1737778776648,3.2078,3310.3,3310.1,0.4999]
[1737778777243,3.2078,3310.3,3310.2,0.48342]
[1737778777445,3.2078,3310.3,3310.1,0.98333]
[1737778778150,3.2078,3310.3,3310.1,0.4999]
[1737778778451,3.2078,3310.3,3310.2,0.5086]
[1737778779651,3.2078,3310.3,3310.2,0.99202]
[1737778780447,3.2078,3310.3,3310.2,0.5086]
[1737778780954,3.2078,3310.3,3310.2,0.99202]
[1737778781161,2.31507375,3310.4,3310.2,0.5086]
[1737778781453,2.31507375,3310.4,3310.3,0.5066]
[1737778782656,2.31507375,3310.4,3310.3,0.99]
[1737778783156,2.31507375,3310.4,3310.3,0.5066]
[1737778783556,2.31507375,3310.4,3310.3,0.99]
[1737778791664,1.09597529,3310.4,3310.3,0.99]
[1737778802486,1.09597529,3310.4,3310.3,0.5066]
[1737778802690,2.10756529,3310.4,3310.3,0.5066]
[1737778802986,0.48341,3310.3,3310.2,0.5086]
[1737778805787,3.2078,3310.3,3310.2,0.5086]
[1737778806385,3.69121,3310.3,3310.2,0.5086]
[1737778806690,3.2078,3310.3,3310.2,0.5086]
[1737778807283,3.2078,3310.3,3310.2,0.99202]
[1737778814292,1.09597529,3310.4,3310.3,0.48341]
[1737778814492,1.09597529,3310.4,3310.3,0.97191]
[1737778814689,1.09597529,3310.4,3310.3,1.45871]
[1737778815991,1.09597529,3310.4,3309.6,4.74662616]
[1737778816184,4.44117809,3310.4,3309.9,0.48346]
[1737778816492,4.44117809,3310.4,3310.1,0.48343]
[1737778817090,3.95777809,3310.4,3309.8,0.5238]
[1737778817291,1.09597529,3309.9,3309.8,1.00728]
[1737778819795,5.52350954,3310.2,3310.1,0.48343]
[1737778827293,9.96008866,3310.2,3309.9,0.48346]
[1737778827493,0.4908,3310.1,3309.9,0.48346]
[1737778827892,0.4908,3310.1,3310.0,0.48345]
[1737778828801,4.47117804,3310.1,3309.1,7.11993924]
[1737778828994,2.31570954,3309.6,3309.5,0.48351]
[1737778830295,2.79922954,3309.6,3309.3,5.23016616]
[1737778831192,2.79922954,3309.6,3309.3,0.48354]
[1737778831597,2.79921954,3309.6,3309.3,0.48354]
[1737778831798,2.31570954,3309.6,3309.2,1.4898]
[1737778832000,2.31570954,3309.6,3309.5,0.48352]
[1737778832205,2.31570954,3309.6,3309.2,1.4898]
[1737778832502,2.31570954,3309.6,3309.4,0.48353]
[1737778832894,2.31570954,3309.6,3309.2,1.4898]
[1737778833094,2.79922954,3309.6,3309.3,0.48355]
[1737778834095,0.48352,3309.5,3309.3,0.48355]
[1737778834296,2.31570954,3309.6,3309.3,0.48355]
[1737778834496,2.31570954,3309.6,3309.2,1.4898]
[1737778834702,2.79921954,3309.6,3309.4,0.48354]
[1737778835095,2.31570954,3309.6,3309.4,0.48354]
[1737778835797,2.79921954,3309.6,3309.4,0.48354]
[1737778836391,2.31570954,3309.6,3309.4,0.48354]
[1737778837801,2.31570954,3309.6,3309.2,1.4898]
[1737778838001,2.31570954,3309.6,3309.5,0.48352]
[1737778838405,2.31570954,3309.6,3309.4,0.48353]
[1737778838406,2.79921954,3309.6,3309.4,0.48353]
[1737778838699,2.31570954,3309.6,3309.5,0.48352]
[1737778838900,2.31570954,3309.6,3309.4,0.48353]
[1737778839102,2.31570954,3309.6,3309.5,0.48352]
[1737778839301,2.79921954,3309.6,3309.2,1.4898]
[1737778839498,2.79921954,3309.6,3309.4,0.48353]
[1737778840301,3.95613199,3309.5,3309.2,0.9739]
[1737778840504,2.31570954,3309.3,3309.2,1.45746]
[1737778841802,1.09679419,3309.3,3309.2,1.45746]
[1737778842008,1.59949419,3309.3,3309.2,1.45746]
[1737778845609,1.59949419,3309.3,3309.2,0.96676]
[1737778845810,1.59949419,3309.3,3309.2,0.96677]
[1737778849813,1.09679419,3309.3,3309.2,0.96677]
[1737778850113,1.09679419,3309.3,3309.2,0.4832]
[1737778850114,5.48528761,3309.3,3309.2,0.4832]
[1737778850711,6.00268761,3309.3,3309.2,0.4832]
[1737778851103,5.51913761,3309.3,3309.2,0.4832]
[1737778851904,6.00268761,3309.3,3309.2,0.4832]
[1737778852706,6.00269761,3309.3,3309.0,0.48358]
[1737778852912,4.90590342,3309.3,3309.1,1.5192]
[1737778854208,1.09679419,3309.2,3309.1,1.5192]
[1737778856013,1.58036419,3309.2,3309.1,0.9961]
[1737778856313,2.67715838,3309.2,3309.1,0.5159]
[1737778856515,0.48363,3308.8,3308.5,1.47967]
[1737778856720,0.48363,3308.8,3308.6,0.5138]
[1737778857409,0.5043,3308.9,3308.6,0.5138]
[1737778857410,1.58043419,3308.7,3308.6,0.5138]
[1737778857819,1.09679419,3308.7,3308.6,0.5138]
[1737778865828,1.58043419,3308.7,3308.6,0.5138]
[1737778867622,1.09679419,3308.7,3308.6,0.5138]
[1737778868624,1.58043419,3308.7,3308.6,0.5138]
[1737778870622,1.09679419,3308.7,3308.5,0.5069]
[1737778870928,1.00125,3308.6,3308.5,0.5069]
[1737778871222,0.48367,3308.5,3307.9,0.5034]
[1737778871427,0.48373,3308.1,3308.0,0.5205]
[1737778872120,3.2078,3308.2,3307.8,3.2078]
[1737778872423,1.09679419,3307.9,3307.4,1.0007]
[1737778872624,1.09679419,3307.6,3307.4,1.0007]
[1737778872819,0.5083,3308.1,3307.5,9.05122035]
[1737778872820,3.89060914,3308.1,3307.5,9.05122035]
[1737778873122,3.09800914,3308.1,3308.0,0.48374]
[1737778873324,1.09679419,3308.4,3308.3,0.4837]
[1737778875228,1.09679419,3308.6,3308.5,0.48367]
[1737778877132,1.09679419,3308.8,3308.3,3.2078]
[1737778877332,1.09679419,3308.8,3308.7,0.48364]
[1737778890438,1.09679419,3308.8,3308.6,0.48365]
[1737778891242,1.09679419,3308.8,3308.6,0.99935]
[1737778892341,1.09679419,3308.8,3308.6,0.5157]
[1737778892541,1.09679419,3308.8,3308.7,0.48364]
[1737778900044,1.10132461,3309.0,3308.6,0.5157]
[1737778900246,0.00453042,3309.0,3308.9,0.48361]
[1737778900549,0.00453042,3309.0,3308.9,0.98911]
[1737778901047,0.00453042,3309.0,3308.9,2.08590419]
[1737778904349,0.00453042,3309.0,3308.9,0.98911]
[1737778916459,4.30459419,3309.6,3308.9,1.60229419]
[1737778916664,4.30459419,3309.6,3309.5,0.48352]
[1737778917665,1.09679419,3309.6,3309.5,0.48352]
[1737778922479,1.09679419,3309.8,3309.7,0.48349]
[1737778924273,1.09679419,3309.8,3309.2,3.72703042]
[1737778924482,1.09679419,3309.3,3309.2,4.21060042]
[1737778924779,1.09679419,3309.3,3309.2,3.69590042]
[1737778928280,1.09679419,3309.3,3309.2,3.21233042]
[1737778928477,1.58034419,3309.3,3309.2,0.00453042]
[1737778928779,5.46200421,3309.3,3309.2,0.00453042]
[1737778929684,6.68234136,3309.3,3309.2,0.00453042]
[1737778929885,6.19879136,3309.3,3309.2,0.00453042]
[1737778930381,6.68234136,3309.3,3309.2,0.00453042]
[1737778932888,6.19879136,3309.3,3309.2,0.00453042]
[1737778933187,6.19879136,3309.3,3309.2,0.48810042]
[1737778939089,2.31713134,3309.3,3309.2,0.48810042]
[1737778939590,5.52493134,3309.6,3309.4,0.48353]
[1737778939788,5.52493134,3309.6,3309.5,0.96752]
[1737778940695,3.2078,3309.6,3309.5,0.96752]
[1737778940887,2.32166176,3309.9,3309.5,0.484]
[1737778941087,2.32166176,3309.9,3309.8,0.48348]
[1737778942389,0.00453042,3309.9,3309.8,0.48348]
[1737778945896,0.00453042,3309.9,3309.8,3.69128]
[1737778951495,3.2078,3310.6,3309.8,3.2078]
[1737778951694,3.2078,3310.6,3310.5,0.48338]
[1737778952989,0.00453042,3310.9,3310.2,3.2078]
[1737778953299,0.00453042,3310.9,3310.8,0.48333]
[1737778954892,0.48334,3310.8,3310.5,0.48337]
[1737778955095,2.31713134,3310.6,3310.5,0.48337]
[1737778956093,2.32166176,3310.9,3310.8,0.48333]
[1737778961294,2.32166176,3310.9,3310.7,0.48334]
[1737778961901,2.80498176,3310.9,3310.7,0.48334]
[1737778963300,2.80498176,3310.9,3310.6,0.48336]
[1737778963500,2.80498176,3310.9,3310.7,0.48334]
[1737778963700,2.32166176,3310.9,3310.3,0.4853]
[1737778963901,2.80049134,3310.6,3310.4,0.48338]
[1737778964100,0.5213,3310.5,3310.4,0.48338]
[1737778964405,1.0355,3310.5,3310.4,0.48339]
[1737778965001,5.03554712,3310.5,3310.4,0.48339]
[1737778966602,2.32166176,3310.9,3310.8,0.48333]
[1737778971503,0.00453042,3310.9,3310.8,0.48333]
[1737778977418,2.32166176,3310.9,3310.4,0.5012]
[1737778977613,2.31713134,3310.6,3310.4,0.5012]
[1737778977911,2.80050134,3310.6,3310.4,0.5012]
[1737778978714,1.01128,3310.5,3310.3,1.0076]
[1737778978915,0.5279,3310.5,3310.3,1.0076]
[1737778980221,0.5279,3310.5,3310.3,0.5242]
[1737778980427,0.4834,3310.4,3310.2,3.2078]